Cogmind - Beta 14 @@@ ROGUE MODE // 2024.08.27 @ 23:45:17 Player: Wulphy Result: Destroyed by D-53 Grenadier with Mini Grenade Launcher Performance ------------- Evolutions (0) 0 Regions Visited (2) 400 Robots Destroyed (13) 65 Value Destroyed (267) 267 Prototype IDs (0) 0 Alien Tech Used (0) 0 Bonus (0) 0 TOTAL SCORE: 732 Bonus ------- None Cogmind --------- Core Integrity 0/250 Matter 300/300 Energy 124/125 System Corruption 0% Temperature Cool (25) Movement Core (450) Ox8 Location -10/Mines Parts ------- > --- POWER (1) -------- Light Ion Engine > --- PROPULSION (2) --- (None) > --- UTILITY (2) ------ Large Storage Unit Seismic Detector > --- WEAPON (2) ------- Medium Laser > --- INVENTORY (15) --- Ion Engine Aluminum Leg Aluminum Leg Compact Wheel Large Matter Pod (150) Improved Terrain Scanner Seismic Detector Tractor Beam Particle Gun Assault Rifle Light Assault Rifle Mining Laser Peak State ------------ > --- POWER ------------ Light Ion Engine > --- PROPULSION ------- Light Treads Light Treads > --- UTILITY ---------- Small Storage Unit Seismic Detector > --- WEAPON ----------- Medium Laser Small Laser > --- INVENTORY -------- Light Ion Engine Aluminum Leg Aluminum Leg Wheel Compact Wheel Improved Terrain Scanner Light Assault Rifle Light Assault Rifle [Rating: 8] Favorites ----------- Power Light Ion Engine Engine Light Ion Engine Propulsion Light Treads Treads Light Treads Leg Aluminum Leg Wheel Wheel Utility Seismic Detector Device Seismic Detector Storage Large Storage Unit Weapon Medium Laser Energy Gun Medium Laser Ballistic Gun Light Assault Rifle Build | -11 -10 -10 ------- Run | Yrd Mat Min Slots Evolved . | . . . Power . | . . . Propulsion . | . . . Utility . | . . . Weapon . | . . . Parts Attached 13 | 7 3 3 Power 2 | 1 . 1 Engine 2 | 1 . 1 Core . | . . . Reactor . | . . . Propulsion 5 | 2 1 2 Treads 3 | 2 1 . Leg 1 | . . 1 Wheel 1 | . . 1 Hover . | . . . Flight . | . . . Utility 3 | 2 1 . Device 1 | 1 . . Storage 2 | 1 1 . Processor . | . . . Hackware . | . . . Protection . | . . . Artifact . | . . . Weapon 3 | 2 1 . Energy Gun 2 | 2 . . Energy Cannon . | . . . Ballistic Gun 1 | . 1 . Ballistic Cannon . | . . . Launcher . | . . . Special Weapon . | . . . Impact Weapon . | . . . Slashing Weapon . | . . . Piercing Weapon . | . . . Special Melee Weapon . | . . . Unidentified Prototypes . | . . . Parts Lost 6 | . . 6 Power 1 | . . 1 Propulsion 4 | . . 4 Utility . | . . . Weapon 1 | . . 1 Highest Loss Streak 3 | . . 3 To Critical Strikes . | . . . Average Slot Usage (%) 99 | . 99 99 Engine 14 | . 14 14 Treads 25 | . 27 23 Device 14 | . 14 14 Storage 14 | . 14 14 Energy Gun 14 | . 15 14 Ballistic Gun 13 | . 12 14 Peak Build Rating 8 | 7 8 8 Average Rating 7 | 5 7 7 On Entrance 5 | . 7 8 Naked Turns . | . . . Heaviest Build 27 | 12 27 27 Greatest Support 40 | 40 40 40 Greatest Overweight (x) 2 | . 1 2 Average Overweight (x) . | . . . Largest Inventory Capacity 15 | 8 15 15 Average Capacity 13 | 7 13 15 Most Carried 15 | 7 15 15 Average Carried 11 | 4 10 14 Final Capacity 15 | 8 15 15 Final Carried 15 | 7 15 12 Class Distribution -------------------- 100% | Mutant Dominant Class ---------------- Mutant | -10/Materials Mutant | -10/Mines Resources | -11 -10 -10 ----------- Run | Yrd Mat Min Matter Collected 518 | 270 207 41 Remotely . | . . . Salvage Created 556 | 150 334 72 Parts 33 | 10 23 . Haulers Intercepted . | . . . Recyclers Shooed 1 | 1 . . Parts Field Recycled . | . . . Retrieved Matter . | . . . Parts Self-Destructed . | . . . Prevented . | . . . Kills | -11 -10 -10 ------- Run | Yrd Mat Min Combat Hostiles Destroyed 11 | . 6 5 Guns 11 | . 6 5 Classes Destroyed 6 | 3 2 1 Worker 1 | 1 . . Tunneler 3 | 3 . . Recycler 2 | 1 1 . Watcher 1 | . 1 . Grunt 6 | . 6 . Assembled 5 | . . 5 Best Kill Streak 3 | 2 2 3 Combat Bots Only 3 | . 2 3 Max Kills in Single Turn 2 | 2 1 1 Gunslinging . | . . . Exploded . | . . . Melee . | . . . Uniques/NPCs Destroyed . | . . . Combat | -11 -10 -10 -------- Run | Yrd Mat Min Hostile Shots Fired 69 | . 28 41 Missed 18 | . 7 11 Damage Taken 980 | . 272 708 Core 282 | . 66 216 Absorbed by Shields . | . . . Regen/Repaired (Parts) 66 | . 66 . Core Remaining (%) 100 | 100 . . Volleys Fired 65 | 15 28 22 Largest 2 | 2 2 2 Hottest 90 | 90 90 70 Shots Fired 129 | 30 56 43 Gun 129 | 30 56 43 Cannon . | . . . Launcher . | . . . Special . | . . . Kinetic 48 | . 27 21 Thermal 81 | 30 29 22 Explosive . | . . . Electromagnetic . | . . . Robot Hit Streak 15 | 5 7 15 Robot Miss Streak 5 | 5 2 3 Penetration Max . | . . . Secondary Targets . | . . . Shots Hit Robots 80 | 12 37 31 Core Hits 34 | 6 16 12 Critical Kills . | . . . Critical Parts Destroyed . | . . . Critical Strikes 4 | 2 1 1 Burn 4 | 2 1 1 Melee Attacks . | . . . Impact . | . . . Slashing . | . . . Piercing . | . . . Sneak Attacks . | . . . Combat Hostiles . | . . . Follow-up Attacks . | . . . Damage Inflicted 873 | 164 391 318 Guns 873 | 164 391 318 Cannons . | . . . Explosions . | . . . Melee . | . . . Ramming . | . . . Kinetic 274 | . 159 115 Thermal 599 | 164 232 203 Explosive . | . . . Electromagnetic . | . . . Impact . | . . . Slashing . | . . . Piercing . | . . . Highest Corruption . | . . . Average Corruption . | . . . Corruption Purged . | . . . Corruption Blocked . | . . . Overload Shots . | . . . Overflow Damage . | . . . Projectiles . | . . . Explosions . | . . . Melee . | . . . Knockbacks . | . . . Impact . | . . . Kinetic . | . . . Secondary . | . . . Self-Inflicted Damage . | . . . Shots . | . . . Rammed . | . . . Targets Rammed . | . . . Kicked . | . . . Crushed . | . . . Highest Temperature 270 | 270 259 100 Average Temperature 77 | 115 76 43 Received Heat Transfer 199 | . 159 40 Siege Activations . | . . . Robots Corrupted . | . . . Combat Hostiles . | . . . Parts Fried . | . . . Impact Corruptions . | . . . Robots Melted . | . . . Combat Hostiles . | . . . Parts Melted . | . . . Heat Transferred 2001 | 570 765 666 Parts Sabotaged . | . . . Parts Stolen . | . . . Parts Stripped . | . . . Power Chain Reactions . | . . . Alert | -11 -10 -10 ------- Run | Yrd Mat Min Peak Influence 108 | 25 108 21 Initial 21 | . 16 21 Average 33 | 8 50 17 Maximum Alert Level . | . . . Low Security (%) 100 | 100 100 100 Level 1 . | . . . Level 2 . | . . . Level 3 . | . . . Level 4 . | . . . Level 5 . | . . . High Security . | . . . Max Security . | . . . Squads Dispatched 1 | . 1 . Investigation 1 | . 1 . Extermination . | . . . Reinforcement . | . . . Assault . | . . . Garrison . | . . . Intercept . | . . . Searches Triggered . | . . . Construction Impeded . | . . . Haulers Reinforced . | . . . Active Scanning Responses . | . . . Cargo Convoy Interrupts . | . . . Stealth | -11 -10 -10 --------- Run | Yrd Mat Min Distress Signals 1 | . 1 . Communications Jammed . | . . . Distress Signals . | . . . Times Spotted 20 | . 8 12 Peak Tracking Total 6 | . 2 6 Tactical Retreats 1 | . . 1 Traps | -11 -10 -10 ------- Run | Yrd Mat Min Traps Triggered 1 | . 1 . Indirectly . | . . . Trap Hack Attempts . | . . . Triggered . | . . . Disarmed . | . . . Reprogrammed . | . . . Reused . | . . . Traps Extracted . | . . . Installed . | . . . Triggered . | . . . Machines | -11 -10 -10 ---------- Run | Yrd Mat Min Machines Disabled . | . . . Max in Single Turn . | . . . Machines Repaired . | . . . Machines Dismantled . | . . . Machines Sabotaged . | . . . Overloaded Fab Kills . | . . . Hacking | -11 -10 -10 --------- Run | Yrd Mat Min Machines Accessed 5 | . 5 . Terminals 4 | . 4 . Fabricators . | . . . Repair Stations 1 | . 1 . Recycling Units . | . . . Scanalyzers . | . . . Garrison Access . | . . . Total Hacks 8 | . 8 . Successful 6 | . 6 . Failed 2 | . 2 . Catastrophic 1 | . 1 . Database Lockouts . | . . . Manual 4 | . 4 . Terminals 6 | . 6 . Fabricators . | . . . Repair Stations 2 | . 2 . Recycling Units . | . . . Scanalyzers . | . . . Garrison Access . | . . . Terminal Hacks 2 | . 2 . Unreport Threat 1 | . 1 . Locate Traps 1 | . 1 . Fabricator Hacks . | . . . Repair Station Hacks 2 | . 2 . Scan Component 1 | . 1 . Repair 1 | . 1 . Recycling Unit Hacks . | . . . Scanalyzer . | . . . Garrison Access Hacks . | . . . Unauthorized Hacks 2 | . 2 . Terminals 2 | . 2 . Botnet 2 | . 2 . Fabricators . | . . . Repair Stations . | . . . Recycling Units . | . . . Scanalyzers . | . . . Garrison Access . | . . . Data Cores Recovered . | . . . Used . | . . . Hacking Detections 4 | . 4 . Full Trace Events . | . . . Feedback Events . | . . . Feedback Blocked . | . . . Robot Schematics Acquired . | . . . Robots Built . | . . . Authchips . | . . . Time . | . . . Total Robot Build Rating . | . . . Part Schematics Acquired . | . . . Parts Built . | . . . Authchips . | . . . Time . | . . . Total Part Build Rating . | . . . Parts Repaired 1 | . 1 . Time 26 | . 26 . Parts Recycled . | . . . Recycled Matter . | . . . Retrieved Matter . | . . . Retrieved Components . | . . . Parts Scanalyzed . | . . . Part Schematics Acquired . | . . . Parts Damaged . | . . . Bothacking | -11 -10 -10 ------------ Run | Yrd Mat Min Used RIF Installer . | . . . Robots Hacked . | . . . Non-combat . | . . . Combat . | . . . Robot Hacks Applied . | . . . Relay Couplers Released . | . . . Fabnet Peak Effective % . | . . . Robots Rewired . | . . . Allies Hacked . | . . . Hacks Repelled . | . . . Allies | -11 -10 -10 -------- Run | Yrd Mat Min Total Allies . | . . . Largest Group . | . . . Highest-Rated Group . | . . . Highest-Rated Ally . | . . . Total Orders . | . . . Ally Attacks . | . . . Total Damage . | . . . Kills . | . . . Allies Corrupted . | . . . Allies Melted . | . . . Intel | -11 -10 -10 ------- Run | Yrd Mat Min Robot Analysis Total . | . . . Derelict Logs Recovered . | . . . Drone Launches . | . . . Drone Recoveries . | . . . Exploration | -11 -10 -10 ------------- Run | Yrd Mat Min Turns Passed 1108 | 144 585 379 Spaces Moved 515 | 51 270 194 Core 2 | 2 . . Treads 482 | 49 270 163 Legs . | . . . Wheels 31 | . . 31 Hover . | . . . Flight . | . . . Fastest Speed 50 | 50 160 110 Average Speed 157 | 155 161 152 Slowest Speed 240 | 160 240 160 Overloaded Moves . | . . . Propulsion Burnouts . | . . . Robots Hopped . | . . . Cave-ins Triggered . | . . . Exploration Rate (%) 31 | 4 47 42 Regions Visited 2 Branch Regions 1 Pre-discovered Areas . | . . . Known Exits Taken . | . . . Unknown Exits Taken 2 | 1 1 . Scrap Searched 1 | . . 1 Spaces Dug . | . . . Terrain Destroyed . | . . . Melee . | . . . Projectile . | . . . AOE . | . . . Terrain Rammed . | . . . Walls Destroyed . | . . . Machines Disabled . | . . . Actions | -11 -10 -10 --------- Run | Yrd Mat Min Total 690 | 82 368 240 Wait 79 | 3 57 19 Move 513 | 50 269 194 Hop . | . . . Pick Up 17 | 7 9 1 Fast Attach 8 | 7 1 . Attach 3 | . . 3 Detach . | . . . Swap 2 | . 2 . Drop 3 | . 2 1 Fire 65 | 15 28 22 Melee . | . . . Ram . | . . . Kick . | . . . Crush . | . . . Escape Stasis . | . . . Rewire . | . . . Trap . | . . . Miscellaneous . | . . . Route ------- -11/Scrapyard -10/Materials -10/Mines History --------- Turn | Location | Event 26 | -11/Scrapyard | Discovered new exit (range 16) 145 | -11/Scrapyard | Entered Materials 304 | -10/Materials | Build established: Mutant 525 | -10/Materials | Repaired Lgt. Treads 664 | -10/Materials | Discovered new exit (range 13) 730 | -10/Materials | Entered Mines 944 | -10/Mines | Assembled infested the area 949 | -10/Mines | Assisted by a Guerilla fighting off Assembled 1075 | -10/Mines | Core integrity fell below 50% 1103 | -10/Mines | Lost 3 parts (1p2n) 1106 | -10/Mines | Core integrity fell below 20% 1109 | -10/Mines | Destroyed by D-53 Grenadier with Mini Grenade Launcher Last Messages --------------- ahead or try to find another way!" 00981_ as-71374 suffers critical hit (Burn). 00983_ Destroyed Asb. Hover Unit. 00986_ as-71374 destroyed. 01003_ as-57906 destroyed. 01006_ as-25118 destroyed. 01009_ Acquired 7 matter. 01033_ Lgt. Treads destroyed. 01039_ as-49703 destroyed. 01043_ Acquired 13 matter. 01052_ Lgt. Treads destroyed. 01072_ Lgt. Ion Engine destroyed. 01074_ as-39901 destroyed. 01078_ Acquired 19 matter. 01090_ Acquired 2 matter. 01094_ R-06 Scavenger collects Mining Laser. 01107_ Wheel destroyed. 01107_ Lgt. Assault Rifle destroyed. 01107_ Aluminum Leg destroyed. 01108_ The unstable cave ceiling collapses. Map ----- +----------------------------------------------------+ | ?????????????????????????????????????????????????? | | ?????????????????????????????????????????????#???# | | ?????????????????????????? ?????????????????? ? | | ???????????????????????? ?????????????????? ?"" | | ?????????????????????? ?????????????????? """ | | ??????????????????????# #????????????????? """ | | ????????????????????#?? ###?????????????? | | ????????????????????? ? #?????????????# """ | | ????????????????????? # | #?????????????# """ | | ?????????????????????? # #?????????????# """ | | ??????????????????????? ##????????????# | | ???????????????????????? =% ###??????????# """ | | ???????????????????????? = #########??# """ | | ????????????????????????? ==* #### """ | | ?????????????????????????? ! | | ??????????????????????????# ###### #### """ | | ?????????????????????????## #????# #??# """ | | ?????????????????????????# % #????# #??# """ | | ?????????????????????????## #????# #??# | | ??????????????????????????## #????# ##?###### | | ??????????????????????###?### #????# #??????? | | ?????????????????????## # #dd #???##= #??????? | | ????????????????????## ##??## #??????? | | ????????????????????# ##??## ##??????? | | ????????????????????# ##??## ##???????? | | ????????????????????# @ ##???# ##????????? | | ????????????????????# # #????# #?????????? | | ????????????????????# #????# #?????????? | | ????????????????????# #???## [#?????????? | | ??????????????????### #??## == ##????????? | | ?????????????????## ##### ##?## % ##???????? | | ?????????????????# #??# ##?# % #???????? | | ?????????????????# #??# ###! ## #???????? | | ?????????????????# #??## ## ### ###???????? | | ????????????????## #??# %%###?# #?????????? | | ????????????????# ##??# #???# ####??????? | | ??????????####?## ##???## #???# #??????? | | ?????????## ## ########## ##???#### #??????? | | ????????## #??## ##?#######%##?????? | | ????????# ##### #???# #??# [ #?????? | | ????????# ##???# ##### #### """" #?????? | | ????????# ##???# """" #?????? | | ????????### #???############ """" #?????? | | ??????????## #??????????????# #?????? | | ???????????## #??????????????##########?????? | | ????????????#### ##?????????????????????????????? | | ???????????????###???????????????????????????????? | | ?????????????????????????????????????????????????? | | | | | +----------------------------------------------------+ Best States ------------- Heat Dissipation 25 Energy Generation 10 Energy Capacity 125 Matter Stores 300 Matter Capacity 300 Sight Range 16 Terrain Scan Density 10 Evasion (%) 40 Recoil Reduction 2 Item Schematics ----------------- None Robot Schematics ------------------ None Fabricated ------------ Nothing Alien Tech Used ----------------- None Achievements -------------- None Challenges ------------ None Game ------ Seed VortexThiefSuperbattery Manual? 0 Play Time 00:16:51 Cumulative 161.2 hours Start 2024.08.27 @ 23:29:33 End 2024.08.27 @ 23:45:17 Sessions 1 Manual Loads 0 Difficulty Rogue Special Mode None Game No. 35 Rogue 35 Adventurer 0 Explorer 0 Win Type - Total 3 Types 1/0/1/1/0/0/0/0/0 Lore% 39 Gallery% 57 Achievement% 58 Wizard Run 0 Options --------- Layout 2 ASCII 1 Keyboard 1 Movement Vi Keybinds 1 Fullscreen 1 Font 24/Tamsyn Map View 50x44 Zoom Use 0% Tactical HUD 1 Map Filters NONE Filters NONE Steam 1 RUN: fb164c25-2a66-44be-85a9-ee2893b8f1c9